[Event "Live Chess"]
[Site "Chess.com"]
[Date "2024.06.02"]
[Round "-"]
[White "Hoogleboogle"]
[Black "MaksymYurii"]
[Result "1/2-1/2"]
[WhiteElo "1309"]
[BlackElo "1005"]
[TimeControl "300"]
[EndTime "4:18:32 PDT"]
[Termination "Game drawn by repetition"]

1. d4 {[%clk 0:04:56.2]} 1... d6 {[%clk 0:04:59.2]} 2. c4 {[%clk 0:04:55.7]}
2... Nf6 {[%clk 0:04:55.4]} 3. Nc3 {[%clk 0:04:53.3]} 3... e5 {[%clk 0:04:53.3]}
4. d5 {[%clk 0:04:49.5]} 4... Na6 {[%clk 0:04:48.2]} 5. e4 {[%clk 0:04:48.1]}
5... c6 {[%clk 0:04:47.2]} 6. Bg5 {[%clk 0:04:45.2]} 6... cxd5 {[%clk
0:04:43.2]} 7. cxd5 {[%clk 0:04:43]} 7... Be7 {[%clk 0:04:40.6]} 8. Bb5+ {[%clk
0:04:38.6]} 8... Bd7 {[%clk 0:04:32]} 9. Qa4 {[%clk 0:04:37]} 9... Bxb5 {[%clk
0:04:29.6]} 10. Qxb5+ {[%clk 0:04:35]} 10... Qd7 {[%clk 0:04:28.7]} 11. Qxd7+
{[%clk 0:04:32]} 11... Nxd7 {[%clk 0:04:27.3]} 12. Bxe7 {[%clk 0:04:30.6]} 12...
Kxe7 {[%clk 0:04:26.7]} 13. Nf3 {[%clk 0:04:25.3]} 13... Nac5 {[%clk 0:04:25.7]}
14. Ke2 {[%clk 0:04:21.6]} 14... Nf6 {[%clk 0:04:21.2]} 15. Ke3 {[%clk
0:04:17.4]} 15... Ng4+ {[%clk 0:04:09.9]} 16. Ke2 {[%clk 0:04:03.4]} 16... Nf6
{[%clk 0:04:01]} 17. Ke3 {[%clk 0:04:00.3]} 17... Ng4+ {[%clk 0:03:59.2]} 18.
Ke2 {[%clk 0:03:58.9]} 18... Nf6 {[%clk 0:03:56]} 1/2-1/2

[Event "Live Chess"]
[Site "Chess.com"]
[Date "2024.06.02"]
[Round "-"]
[White "PureDashingOctopus"]
[Black "upoe610"]
[Result "0-1"]
[WhiteElo "2256"]
[BlackElo "2134"]
[TimeControl "300"]
[EndTime "4:18:38 PDT"]
[Termination "upoe610 won by resignation"]

1. e4 {[%clk 0:04:58.2]} 1... e5 {[%clk 0:04:58.9]} 2. Nf3 {[%clk 0:04:53.6]}
2... Nc6 {[%clk 0:04:58]} 3. Bb5 {[%clk 0:04:51.7]} 3... a6 {[%clk 0:04:57]} 4.
Ba4 {[%clk 0:04:46.3]} 4... Nf6 {[%clk 0:04:55.9]} 5. O-O {[%clk 0:04:43.5]}
5... Be7 {[%clk 0:04:55.1]} 6. d3 {[%clk 0:04:41]} 6... b5 {[%clk 0:04:54]} 7.
Bb3 {[%clk 0:04:39.9]} 7... d6 {[%clk 0:04:53.6]} 8. c3 {[%clk 0:04:37.6]} 8...
Na5 {[%clk 0:04:52]} 9. Bc2 {[%clk 0:04:35]} 9... c5 {[%clk 0:04:51.6]} 10. a4
{[%clk 0:04:32.8]} 10... b4 {[%clk 0:04:49.5]} 11. Bd2 {[%clk 0:04:30]} 11...
Rb8 {[%clk 0:04:47.7]} 12. cxb4 {[%clk 0:04:23.1]} 12... cxb4 {[%clk 0:04:46.3]}
13. d4 {[%clk 0:04:19.4]} 13... Bg4 {[%clk 0:04:37.2]} 14. h3 {[%clk 0:03:51.6]}
14... Bxf3 {[%clk 0:04:35.9]} 15. Qxf3 {[%clk 0:03:45.2]} 15... O-O {[%clk
0:04:34.8]} 16. dxe5 {[%clk 0:03:40.5]} 16... dxe5 {[%clk 0:04:33.4]} 17. Bg5
{[%clk 0:03:23.2]} 17... b3 {[%clk 0:04:19.7]} 18. Bd3 {[%clk 0:03:17.5]} 18...
Nc6 {[%clk 0:04:19]} 19. Bxa6 {[%clk 0:03:08.1]} 19... Nd4 {[%clk 0:04:17.5]}
20. Qd1 {[%clk 0:02:56.3]} 20... Nxe4 {[%clk 0:04:13.5]} 21. Bxe7 {[%clk
0:02:53.8]} 21... Qxe7 {[%clk 0:04:12.5]} 22. Nc3 {[%clk 0:02:53.3]} 22... Nc5
{[%clk 0:04:08.6]} 23. Bc4 {[%clk 0:02:50.1]} 23... Nc2 {[%clk 0:04:07]} 24. Rc1
{[%clk 0:02:41.2]} 24... Nd4 {[%clk 0:04:05.8]} 25. Nd5 {[%clk 0:02:35.8]} 25...
Qg5 {[%clk 0:03:59.7]} 26. a5 {[%clk 0:02:19.7]} 26... Na4 {[%clk 0:03:56.9]}
27. Rb1 {[%clk 0:02:10]} 27... Qd8 {[%clk 0:03:49.2]} 28. a6 {[%clk 0:02:05.9]}
28... Qd6 {[%clk 0:03:33.6]} 29. a7 {[%clk 0:02:00.6]} 29... Ra8 {[%clk
0:03:32.3]} 30. Bxb3 {[%clk 0:02:00]} 30... Nxb3 {[%clk 0:03:27.1]} 31. Qxb3
{[%clk 0:01:59.9]} 31... Rxa7 {[%clk 0:03:25.6]} 32. Rfd1 {[%clk 0:01:57.6]}
32... Nc5 {[%clk 0:03:22.1]} 33. Qc4 {[%clk 0:01:51.1]} 33... Rc8 {[%clk
0:03:12.7]} 34. Qg4 {[%clk 0:01:27.8]} 34... Rb8 {[%clk 0:03:03.8]} 35. b4
{[%clk 0:01:21.8]} 35... Nd7 {[%clk 0:02:56.8]} 36. b5 {[%clk 0:01:10.9]} 36...
Nf6 {[%clk 0:02:55.1]} 37. Nxf6+ {[%clk 0:01:09.4]} 37... Qxf6 {[%clk
0:02:53.8]} 38. Qc4 {[%clk 0:00:56.8]} 38... h6 {[%clk 0:02:50.9]} 39. Qc5
{[%clk 0:00:51.4]} 39... Rab7 {[%clk 0:02:50]} 40. Rd6 {[%clk 0:00:44.8]} 40...
Qf5 {[%clk 0:02:46.6]} 41. Rb2 {[%clk 0:00:39.6]} 41... Qf4 {[%clk 0:02:42]} 42.
b6 {[%clk 0:00:34]} 42... Qa4 {[%clk 0:02:24.9]} 43. Qxe5 {[%clk 0:00:23.3]}
43... Qa1+ {[%clk 0:02:21.9]} 44. Kh2 {[%clk 0:00:21]} 44... Qc1 {[%clk
0:02:17.3]} 45. Qe3 {[%clk 0:00:17.8]} 45... Qxb2 {[%clk 0:02:14.2]} 0-1

[Event "Live Chess"]
[Site "Chess.com"]
[Date "2024.06.02"]
[Round "-"]
[White "LL220284LL"]
[Black "Kyrylo7770"]
[Result "1-0"]
[WhiteElo "2511"]
[BlackElo "1651"]
[TimeControl "300"]
[EndTime "4:18:38 PDT"]
[Termination "LL220284LL won by checkmate"]

1. Nf3 {[%clk 0:04:58.2]} 1... d5 {[%clk 0:04:59]} 2. g3 {[%clk 0:04:50.2]} 2...
Bg4 {[%clk 0:04:58.1]} 3. Bg2 {[%clk 0:04:49.3]} 3... e6 {[%clk 0:04:57.7]} 4.
b3 {[%clk 0:04:42.4]} 4... c6 {[%clk 0:04:57.3]} 5. Bb2 {[%clk 0:04:36.2]} 5...
Nf6 {[%clk 0:04:55.7]} 6. O-O {[%clk 0:04:33.5]} 6... Be7 {[%clk 0:04:54.9]} 7.
c4 {[%clk 0:04:32.9]} 7... h5 {[%clk 0:04:53.8]} 8. Nc3 {[%clk 0:04:30.5]} 8...
Bxf3 {[%clk 0:04:52.2]} 9. Bxf3 {[%clk 0:04:29.3]} 9... h4 {[%clk 0:04:51]} 10.
e3 {[%clk 0:04:25.3]} 10... hxg3 {[%clk 0:04:49.4]} 11. hxg3 {[%clk 0:04:25.2]}
11... Bd6 {[%clk 0:04:41.5]} 12. Kg2 {[%clk 0:04:21.9]} 12... Qc7 {[%clk
0:04:40.4]} 13. Rh1 {[%clk 0:04:18.9]} 13... Rxh1 {[%clk 0:04:37.3]} 14. Qxh1
{[%clk 0:04:18.8]} 14... Nbd7 {[%clk 0:04:35.3]} 15. Qh8+ {[%clk 0:04:12]} 15...
Nf8 {[%clk 0:04:32.4]} 16. Qxg7 {[%clk 0:04:07.2]} 16... N6d7 {[%clk 0:04:30.2]}
17. cxd5 {[%clk 0:03:58.6]} 17... cxd5 {[%clk 0:04:28.6]} 18. Nb5 {[%clk
0:03:57]} 18... Qc5 {[%clk 0:04:23.5]} 19. Nxd6+ {[%clk 0:03:55.5]} 19... Qxd6
{[%clk 0:04:22.6]} 20. Rc1 {[%clk 0:03:54.4]} 20... Nc5 {[%clk 0:04:13]} 21. Ba3
{[%clk 0:03:51.2]} 21... b6 {[%clk 0:04:12]} 22. d4 {[%clk 0:03:50]} 22... O-O-O
{[%clk 0:04:08.5]} 23. dxc5 {[%clk 0:03:48.2]} 23... Qc6 {[%clk 0:04:05.1]} 24.
cxb6 {[%clk 0:03:46.7]} 24... Qxc1 {[%clk 0:04:04]} 25. Bxc1 {[%clk 0:03:46.6]}
25... Kb7 {[%clk 0:04:02.8]} 26. Qxf7+ {[%clk 0:03:45.2]} 26... Kxb6 {[%clk
0:04:02.5]} 27. Bb2 {[%clk 0:03:44]} 27... Nd7 {[%clk 0:03:59.9]} 28. Bd4+
{[%clk 0:03:43.1]} 28... Kb5 {[%clk 0:03:58.7]} 29. Qxe6 {[%clk 0:03:42.3]}
29... Nb6 {[%clk 0:03:57.2]} 30. Be2+ {[%clk 0:03:39.5]} 30... Kb4 {[%clk
0:03:55.8]} 31. Qe7+ {[%clk 0:03:37.8]} 31... Ka5 {[%clk 0:03:53]} 32. Qa3+
{[%clk 0:03:37.1]} 32... Na4 {[%clk 0:03:49.7]} 33. Qxa4# {[%clk 0:03:36.6]} 1-0

[Event "Live Chess"]
[Site "Chess.com"]
[Date "2024.06.02"]
[Round "-"]
[White "seasidecastle27"]
[Black "MagnersCarlsberg2870"]
[Result "1-0"]
[WhiteElo "1948"]
[BlackElo "1777"]
[TimeControl "300"]
[EndTime "4:19:09 PDT"]
[Termination "seasidecastle27 won by checkmate"]

1. d4 {[%clk 0:04:53.5]} 1... Nf6 {[%clk 0:04:58.7]} 2. Nf3 {[%clk 0:04:52.7]}
2... b6 {[%clk 0:04:56.6]} 3. Bg5 {[%clk 0:04:49.2]} 3... Bb7 {[%clk 0:04:52.4]}
4. Nbd2 {[%clk 0:04:48.2]} 4... h6 {[%clk 0:04:50]} 5. Bh4 {[%clk 0:04:46.6]}
5... g5 {[%clk 0:04:49]} 6. Bg3 {[%clk 0:04:45.4]} 6... d6 {[%clk 0:04:45.4]} 7.
e3 {[%clk 0:04:42.8]} 7... Nh5 {[%clk 0:04:44]} 8. Bd3 {[%clk 0:04:41.3]} 8...
Nxg3 {[%clk 0:04:42.6]} 9. hxg3 {[%clk 0:04:39.7]} 9... Bg7 {[%clk 0:04:40.8]}
10. Qe2 {[%clk 0:04:37.3]} 10... c5 {[%clk 0:04:38.8]} 11. c3 {[%clk 0:04:32.2]}
11... e6 {[%clk 0:04:24.6]} 12. e4 {[%clk 0:04:29.8]} 12... Nd7 {[%clk
0:04:22.9]} 13. Nc4 {[%clk 0:04:17.4]} 13... d5 {[%clk 0:04:11.9]} 14. exd5
{[%clk 0:04:13.7]} 14... Bxd5 {[%clk 0:04:08.3]} 15. Ne3 {[%clk 0:04:06.7]}
15... Bxf3 {[%clk 0:04:02.6]} 16. gxf3 {[%clk 0:03:55.7]} 16... cxd4 {[%clk
0:04:01.2]} 17. Nf5 {[%clk 0:03:53.9]} 17... Qf6 {[%clk 0:03:53.7]} 18. Nxd4
{[%clk 0:03:42.9]} 18... O-O {[%clk 0:03:47.7]} 19. Qe4 {[%clk 0:03:40.1]} 19...
Nc5 {[%clk 0:03:41.8]} 20. Qh7# {[%clk 0:03:38.4]} 1-0

[Event "Live Chess"]
[Site "Chess.com"]
[Date "2024.06.02"]
[Round "-"]
[White "asingardenof"]
[Black "CarmelJane"]
[Result "0-1"]
[WhiteElo "621"]
[BlackElo "2048"]
[TimeControl "300"]
[EndTime "4:19:11 PDT"]
[Termination "CarmelJane won by checkmate"]

1. d4 {[%clk 0:04:54.4]} 1... g6 {[%clk 0:04:58.3]} 2. c4 {[%clk 0:04:52.1]}
2... Bg7 {[%clk 0:04:58.2]} 3. e3 {[%clk 0:04:49.4]} 3... c5 {[%clk 0:04:56.6]}
4. Nc3 {[%clk 0:04:48]} 4... cxd4 {[%clk 0:04:55]} 5. Nf3 {[%clk 0:04:47.9]}
5... dxe3 {[%clk 0:04:53.8]} 6. g3 {[%clk 0:04:47.8]} 6... exf2+ {[%clk
0:04:52.7]} 7. Kxf2 {[%clk 0:04:46]} 7... Nc6 {[%clk 0:04:51.5]} 8. Bd3 {[%clk
0:04:43.6]} 8... Nf6 {[%clk 0:04:50.5]} 9. Bf4 {[%clk 0:04:39.7]} 9... Ng4+
{[%clk 0:04:49.3]} 10. Kg2 {[%clk 0:04:37.9]} 10... O-O {[%clk 0:04:46.4]} 11.
h3 {[%clk 0:04:36.4]} 11... e5 {[%clk 0:04:43.8]} 12. Bg5 {[%clk 0:04:32]} 12...
Qxg5 {[%clk 0:04:40.8]} 13. Nxg5 {[%clk 0:04:30.5]} 13... Ne3+ {[%clk
0:04:40.2]} 14. Kf2 {[%clk 0:04:24.9]} 14... Nxd1+ {[%clk 0:04:40.1]} 15. Raxd1
{[%clk 0:04:24.7]} 15... Nd4 {[%clk 0:04:29.4]} 16. c5 {[%clk 0:04:17.1]} 16...
f5 {[%clk 0:04:23]} 17. Bc4+ {[%clk 0:04:15]} 17... Ne6 {[%clk 0:04:16.8]} 18.
Nd5 {[%clk 0:04:01.9]} 18... Bf6 {[%clk 0:03:58.8]} 19. Nxe6 {[%clk 0:03:58.3]}
19... dxe6 {[%clk 0:03:55.8]} 20. Nf4 {[%clk 0:03:58.2]} 20... exf4 {[%clk
0:03:52.1]} 21. gxf4 {[%clk 0:03:58.1]} 21... Kg7 {[%clk 0:03:45]} 22. Rd6
{[%clk 0:03:51]} 22... e5 {[%clk 0:03:41.9]} 23. Be6 {[%clk 0:03:38]} 23... Bxe6
{[%clk 0:03:38.7]} 24. Rxe6 {[%clk 0:03:37.9]} 24... exf4 {[%clk 0:03:37.6]} 25.
Kf3 {[%clk 0:03:35.8]} 25... Rfe8 {[%clk 0:03:33.7]} 26. Rxe8 {[%clk 0:03:30.6]}
26... Rxe8 {[%clk 0:03:32.1]} 27. Rd1 {[%clk 0:03:27.2]} 27... g5 {[%clk
0:03:22]} 28. Rd7+ {[%clk 0:03:24.6]} 28... Re7 {[%clk 0:03:21.1]} 29. Rxe7+
{[%clk 0:03:22.8]} 29... Bxe7 {[%clk 0:03:21]} 30. h4 {[%clk 0:03:18.3]} 30...
h6 {[%clk 0:03:17.6]} 31. hxg5 {[%clk 0:03:16.9]} 31... hxg5 {[%clk 0:03:17.2]}
32. b4 {[%clk 0:03:14.7]} 32... Kf6 {[%clk 0:03:14.3]} 33. a4 {[%clk 0:03:14.6]}
33... Ke5 {[%clk 0:03:13.8]} 34. b5 {[%clk 0:03:12.3]} 34... Kd5 {[%clk
0:03:13.1]} 35. c6 {[%clk 0:03:12.2]} 35... bxc6 {[%clk 0:03:11.9]} 36. a5
{[%clk 0:03:09.9]} 36... cxb5 {[%clk 0:03:10.8]} 37. Ke2 {[%clk 0:03:06.7]}
37... b4 {[%clk 0:03:10.7]} 38. Kd1 {[%clk 0:03:06.2]} 38... b3 {[%clk
0:03:10.3]} 39. Kc1 {[%clk 0:03:05.4]} 39... Bf6 {[%clk 0:03:09.3]} 40. Kb1
{[%clk 0:03:03.3]} 40... b2 {[%clk 0:03:09.2]} 41. a6 {[%clk 0:03:01.2]} 41...
f3 {[%clk 0:03:09.1]} 42. Kc2 {[%clk 0:02:58.7]} 42... f2 {[%clk 0:03:08.8]} 43.
Kb3 {[%clk 0:02:58.6]} 43... f1=Q {[%clk 0:03:07.3]} 44. Ka4 {[%clk 0:02:58.5]}
44... Qc4+ {[%clk 0:03:04.9]} 45. Ka5 {[%clk 0:02:55.5]} 45... Qc5+ {[%clk
0:03:03.1]} 46. Ka4 {[%clk 0:02:53.9]} 46... Qc6+ {[%clk 0:03:00]} 47. Kb4
{[%clk 0:02:52.2]} 47... b1=Q+ {[%clk 0:02:58.9]} 48. Ka3 {[%clk 0:02:50.5]}
48... Qxa6# {[%clk 0:02:57.9]} 0-1

[Event "Live Chess"]
[Site "Chess.com"]
[Date "2024.06.02"]
[Round "-"]
[White "ACM42"]
[Black "Tatarinov_Maxim"]
[Result "1-0"]
[WhiteElo "2182"]
[BlackElo "2295"]
[TimeControl "300"]
[EndTime "4:19:22 PDT"]
[Termination "ACM42 won by resignation"]

1. e4 {[%clk 0:04:59]} 1... c5 {[%clk 0:04:57.5]} 2. Nf3 {[%clk 0:04:58.2]} 2...
Nc6 {[%clk 0:04:56.6]} 3. d4 {[%clk 0:04:58.1]} 3... cxd4 {[%clk 0:04:56.5]} 4.
Nxd4 {[%clk 0:04:57.2]} 4... Nf6 {[%clk 0:04:55.7]} 5. Nc3 {[%clk 0:04:56]} 5...
e5 {[%clk 0:04:54.5]} 6. Ndb5 {[%clk 0:04:54.2]} 6... d6 {[%clk 0:04:53.9]} 7.
Bg5 {[%clk 0:04:52.4]} 7... a6 {[%clk 0:04:52.9]} 8. Bxf6 {[%clk 0:04:51.6]}
8... gxf6 {[%clk 0:04:51.6]} 9. Na3 {[%clk 0:04:50.3]} 9... b5 {[%clk
0:04:50.5]} 10. Nd5 {[%clk 0:04:49.5]} 10... f5 {[%clk 0:04:44.8]} 11. Bd3
{[%clk 0:04:46.3]} 11... Be6 {[%clk 0:04:43.4]} 12. c4 {[%clk 0:04:44.6]} 12...
Bxd5 {[%clk 0:04:33.8]} 13. cxd5 {[%clk 0:04:39.6]} 13... Nd4 {[%clk 0:04:29.4]}
14. exf5 {[%clk 0:04:30.6]} 14... Qg5 {[%clk 0:03:41.1]} 15. g3 {[%clk
0:04:03.8]} 15... Bg7 {[%clk 0:03:10.7]} 16. h4 {[%clk 0:03:57.6]} 16... Qe7
{[%clk 0:03:03.3]} 17. Be4 {[%clk 0:03:44.1]} 17... O-O {[%clk 0:02:53]} 18. O-O
{[%clk 0:03:41.7]} 18... Rac8 {[%clk 0:02:39.9]} 19. Rc1 {[%clk 0:03:37.6]}
19... Bh6 {[%clk 0:02:30.9]} 20. Rxc8 {[%clk 0:03:20.5]} 20... Rxc8 {[%clk
0:02:30.8]} 21. f6 {[%clk 0:03:19.8]} 21... Qxf6 {[%clk 0:02:18.4]} 22. Qg4+
{[%clk 0:03:18.9]} 22... Kh8 {[%clk 0:02:11.6]} 23. Qxc8+ {[%clk 0:03:16.9]}
23... Kg7 {[%clk 0:02:11.5]} 24. Nc2 {[%clk 0:03:06]} 24... Ne2+ {[%clk
0:01:54.8]} 25. Kg2 {[%clk 0:02:54]} 25... Nf4+ {[%clk 0:01:53.3]} 26. gxf4
{[%clk 0:02:45.5]} 26... Qxh4 {[%clk 0:01:47]} 27. Rh1 {[%clk 0:02:37]} 27...
Qxf4 {[%clk 0:01:45.3]} 28. Qf5 {[%clk 0:02:36.3]} 1-0

[Event "Live Chess"]
[Site "Chess.com"]
[Date "2024.06.02"]
[Round "-"]
[White "McFim"]
[Black "Duke_of_Bebington"]
[Result "1-0"]
[WhiteElo "1707"]
[BlackElo "1636"]
[TimeControl "300"]
[EndTime "4:19:32 PDT"]
[Termination "McFim won by resignation"]

1. e4 {[%clk 0:04:58.3]} 1... e5 {[%clk 0:04:58.7]} 2. Nf3 {[%clk 0:04:56.9]}
2... Nf6 {[%clk 0:04:56]} 3. Nxe5 {[%clk 0:04:55.6]} 3... d6 {[%clk 0:04:53.6]}
4. Nf3 {[%clk 0:04:54.3]} 4... Nxe4 {[%clk 0:04:51.8]} 5. d3 {[%clk 0:04:53.4]}
5... Nf6 {[%clk 0:04:50]} 6. d4 {[%clk 0:04:52.3]} 6... d5 {[%clk 0:04:48.5]} 7.
Bd3 {[%clk 0:04:51.1]} 7... Bd6 {[%clk 0:04:47.5]} 8. O-O {[%clk 0:04:50.1]}
8... O-O {[%clk 0:04:46.5]} 9. Re1 {[%clk 0:04:49.4]} 9... Bg4 {[%clk
0:04:35.4]} 10. h3 {[%clk 0:04:46.6]} 10... Bh5 {[%clk 0:04:34.4]} 11. Be3
{[%clk 0:04:41.7]} 11... Nbd7 {[%clk 0:04:24.7]} 12. c4 {[%clk 0:04:38.1]} 12...
c6 {[%clk 0:04:23.3]} 13. c5 {[%clk 0:04:36.2]} 13... Bc7 {[%clk 0:04:16.5]} 14.
Nbd2 {[%clk 0:04:33.9]} 14... b6 {[%clk 0:04:13]} 15. b4 {[%clk 0:04:31.4]}
15... a5 {[%clk 0:04:10.8]} 16. a3 {[%clk 0:04:26.8]} 16... axb4 {[%clk
0:03:49.6]} 17. axb4 {[%clk 0:04:26.7]} 17... b5 {[%clk 0:03:47.2]} 18. Qc2
{[%clk 0:04:25.2]} 18... Bg6 {[%clk 0:03:41.5]} 19. Bxg6 {[%clk 0:03:57.5]}
19... hxg6 {[%clk 0:03:39.9]} 20. Ra2 {[%clk 0:03:54.7]} 20... Re8 {[%clk
0:03:34.1]} 21. Rea1 {[%clk 0:03:50.9]} 21... Rxa2 {[%clk 0:03:29.4]} 22. Qxa2
{[%clk 0:03:41.6]} 22... Ne4 {[%clk 0:03:21.1]} 23. Qa6 {[%clk 0:03:34.4]} 23...
Qf6 {[%clk 0:03:14.6]} 24. Qb7 {[%clk 0:03:27.9]} 24... Nexc5 {[%clk 0:02:42.6]}
25. bxc5 {[%clk 0:03:20.5]} 25... Nxc5 {[%clk 0:02:39.5]} 26. Qxc7 {[%clk
0:03:17.3]} 26... Re6 {[%clk 0:02:18.1]} 27. Ra8+ {[%clk 0:03:09.4]} 27... Kh7
{[%clk 0:02:16.6]} 1-0

[Event "Live Chess"]
[Site "Chess.com"]
[Date "2024.06.02"]
[Round "-"]
[White "Queensandpawns"]
[Black "Zhevzh1k7"]
[Result "1-0"]
[WhiteElo "2250"]
[BlackElo "1107"]
[TimeControl "300"]
[EndTime "4:19:37 PDT"]
[Termination "Queensandpawns won by resignation"]

1. e4 {[%clk 0:04:58.9]} 1... c6 {[%clk 0:04:57.8]} 2. d4 {[%clk 0:04:57.2]}
2... d5 {[%clk 0:04:56.1]} 3. Nd2 {[%clk 0:04:57.1]} 3... Qb6 {[%clk 0:04:43.1]}
4. Ngf3 {[%clk 0:04:53.8]} 4... Bg4 {[%clk 0:04:39.1]} 5. e5 {[%clk 0:04:51.5]}
5... e6 {[%clk 0:04:34.3]} 6. Bd3 {[%clk 0:04:42.7]} 6... Bb4 {[%clk 0:04:30]}
7. c3 {[%clk 0:04:39.9]} 7... Be7 {[%clk 0:04:22.4]} 8. O-O {[%clk 0:04:36.1]}
8... Nd7 {[%clk 0:04:20.8]} 9. h3 {[%clk 0:04:33.4]} 9... Bxf3 {[%clk 0:04:19]}
10. Qxf3 {[%clk 0:04:32.3]} 10... c5 {[%clk 0:04:16.1]} 11. Qg3 {[%clk
0:04:26.4]} 11... g6 {[%clk 0:04:03.1]} 12. h4 {[%clk 0:04:20.4]} 12... cxd4
{[%clk 0:04:01.5]} 13. cxd4 {[%clk 0:04:17.6]} 13... Qxd4 {[%clk 0:03:58.4]} 14.
Nb3 {[%clk 0:04:17.5]} 14... Qb6 {[%clk 0:03:52.5]} 15. Be3 {[%clk 0:04:15]}
15... Bc5 {[%clk 0:03:45.7]} 16. Nxc5 {[%clk 0:04:10.8]} 16... Nxc5 {[%clk
0:03:42.7]} 17. Rfc1 {[%clk 0:04:09.2]} 17... Ne4 {[%clk 0:03:01]} 18. Bxe4
{[%clk 0:04:06.4]} 18... Qxb2 {[%clk 0:02:53.1]} 19. Bd3 {[%clk 0:03:42.1]}
19... Ne7 {[%clk 0:02:46.7]} 20. Rab1 {[%clk 0:03:37.5]} 20... Qxa2 {[%clk
0:02:43.4]} 21. Rxb7 {[%clk 0:03:33.7]} 21... Nf5 {[%clk 0:02:32.6]} 22. Bxf5
{[%clk 0:03:31.6]} 22... exf5 {[%clk 0:02:31.9]} 23. Qg5 {[%clk 0:03:30.3]}
23... O-O {[%clk 0:02:28]} 24. Qf6 {[%clk 0:03:27.8]} 24... Qa6 {[%clk 0:02:06]}
25. Qxa6 {[%clk 0:03:23.3]} 25... Rab8 {[%clk 0:02:02.9]} 26. Qxa7 {[%clk
0:03:21.4]} 26... Rxb7 {[%clk 0:02:01.7]} 27. Qxb7 {[%clk 0:03:21.3]} 27... Re8
{[%clk 0:01:57.4]} 1-0

[Event "Live Chess"]
[Site "Chess.com"]
[Date "2024.06.02"]
[Round "-"]
[White "Ninifu"]
[Black "Crowded_House"]
[Result "1-0"]
[WhiteElo "2009"]
[BlackElo "1661"]
[TimeControl "300"]
[EndTime "4:20:12 PDT"]
[Termination "Ninifu won by checkmate"]

1. d4 {[%clk 0:04:56]} 1... e6 {[%clk 0:04:58.6]} 2. c4 {[%clk 0:04:54.4]} 2...
d5 {[%clk 0:04:57.7]} 3. e4 {[%clk 0:04:50.5]} 3... dxe4 {[%clk 0:04:52.7]} 4.
Nc3 {[%clk 0:04:49.8]} 4... Nf6 {[%clk 0:04:50.4]} 5. f3 {[%clk 0:04:49.2]} 5...
Bb4 {[%clk 0:04:48.1]} 6. fxe4 {[%clk 0:04:43.8]} 6... Bxc3+ {[%clk 0:04:46.6]}
7. bxc3 {[%clk 0:04:42.4]} 7... Nxe4 {[%clk 0:04:45.2]} 8. Nf3 {[%clk
0:04:26.7]} 8... Nxc3 {[%clk 0:04:37.1]} 9. Qc2 {[%clk 0:04:24]} 9... Nxa2
{[%clk 0:04:25.8]} 10. Rxa2 {[%clk 0:04:21]} 10... Nc6 {[%clk 0:04:21.3]} 11.
Be3 {[%clk 0:03:50.5]} 11... Nb4 {[%clk 0:04:19.7]} 12. Qa4+ {[%clk 0:03:47]}
12... Nc6 {[%clk 0:04:17.9]} 13. Bd3 {[%clk 0:03:22.2]} 13... Bd7 {[%clk
0:04:16]} 14. Qb3 {[%clk 0:03:14.6]} 14... O-O {[%clk 0:04:07.9]} 15. O-O {[%clk
0:03:12.7]} 15... b6 {[%clk 0:03:53.3]} 16. Qd1 {[%clk 0:02:57.2]} 16... Nb4
{[%clk 0:03:41.5]} 17. Bxh7+ {[%clk 0:02:53.6]} 17... Kxh7 {[%clk 0:03:34.2]}
18. Rb2 {[%clk 0:02:52.4]} 18... Nc6 {[%clk 0:03:23.2]} 19. Ng5+ {[%clk
0:02:51.5]} 19... Kg6 {[%clk 0:03:19.6]} 20. Qg4 {[%clk 0:01:46.3]} 20... f5
{[%clk 0:03:01.7]} 21. Qg3 {[%clk 0:01:44.3]} 21... Kf6 {[%clk 0:02:51.9]} 22.
d5 {[%clk 0:01:23.1]} 22... exd5 {[%clk 0:02:29.8]} 23. cxd5 {[%clk 0:01:19.6]}
23... Ne5 {[%clk 0:02:27.6]} 24. Bd4 {[%clk 0:01:18]} 24... Re8 {[%clk
0:02:25.7]} 25. Re2 {[%clk 0:01:11.4]} 25... Bb5 {[%clk 0:02:10.9]} 26. Rxe5
{[%clk 0:00:57.2]} 26... Kg6 {[%clk 0:02:05.4]} 27. Ne6+ {[%clk 0:00:46.9]}
27... Kh7 {[%clk 0:02:01.4]} 28. Nxd8 {[%clk 0:00:44.3]} 28... Raxd8 {[%clk
0:02:00.6]} 29. Rxe8 {[%clk 0:00:41.1]} 29... Rxe8 {[%clk 0:01:59.1]} 30. Qxg7#
{[%clk 0:00:40.3]} 1-0

[Event "Live Chess"]
[Site "Chess.com"]
[Date "2024.06.02"]
[Round "-"]
[White "Kyrylo7770"]
[Black "MaksymYurii"]
[Result "1-0"]
[WhiteElo "1651"]
[BlackElo "1005"]
[TimeControl "300"]
[EndTime "4:20:46 PDT"]
[Termination "Kyrylo7770 won by checkmate"]

1. d4 {[%clk 0:04:58]} 1... d5 {[%clk 0:04:58.6]} 2. Nf3 {[%clk 0:04:57.1]} 2...
Nc6 {[%clk 0:04:57.5]} 3. Bg5 {[%clk 0:04:56.4]} 3... Nf6 {[%clk 0:04:52.5]} 4.
e3 {[%clk 0:04:55.8]} 4... h6 {[%clk 0:04:50.6]} 5. Bh4 {[%clk 0:04:54.9]} 5...
Ne4 {[%clk 0:04:44.1]} 6. c3 {[%clk 0:04:53.3]} 6... f5 {[%clk 0:04:41.5]} 7.
Bd3 {[%clk 0:04:51.4]} 7... g5 {[%clk 0:04:38.3]} 8. Bg3 {[%clk 0:04:48.7]} 8...
Nxg3 {[%clk 0:04:31.7]} 9. hxg3 {[%clk 0:04:47.1]} 9... e6 {[%clk 0:04:14.4]}
10. Bb5 {[%clk 0:04:42.2]} 10... Bd7 {[%clk 0:04:10.2]} 11. Bxc6 {[%clk
0:04:41.2]} 11... Bxc6 {[%clk 0:04:08.8]} 12. Ne5 {[%clk 0:04:40.9]} 12... Bd6
{[%clk 0:03:31.5]} 13. Qh5+ {[%clk 0:04:39.5]} 13... Ke7 {[%clk 0:03:23.5]} 14.
Qf7# {[%clk 0:04:39.4]} 1-0